bitfinex-derivatives/quotes_BTCF0:USTF0_20241218
["timestamp","ask_amount","ask_price","bid_price","bid_amount"]
[1734553578122,0.3622793,101480.0,101440.0,0.049317]
[1734553578310,0.50018564,101510.0,101470.0,0.410103]
[1734553578624,0.13938564,101510.0,101500.0,0.410088]
[1734553579007,7.736e-05,101510.0,101500.0,0.710088]
[1734553579207,0.32566802,101550.0,101500.0,0.3608]
[1734553579411,0.005,101510.0,101500.0,0.410084]
[1734553579611,0.005,101510.0,101490.0,0.3608]
[1734553580010,0.3608,101530.0,101520.0,0.049278]
[1734553580218,0.00010226,101530.0,101520.0,0.410078]
[1734553580418,0.36148,101570.0,101520.0,0.6608]
[1734553580718,0.049272,101540.0,101520.0,0.3608]
[1734553581025,0.049272,101540.0,101490.0,0.41156978]
[1734553581026,0.3608,101530.0,101490.0,0.41156978]
[1734553581318,0.3608,101530.0,101490.0,0.17611891]
[1734553581319,0.36092061,101530.0,101490.0,0.17611891]
[1734553581518,0.00012061,101530.0,101520.0,0.410078]
[1734553581713,0.38230083,101570.0,101550.0,0.049264]
[1734553581921,0.38230083,101570.0,101530.0,0.3608]
[1734553581922,0.00068,101570.0,101530.0,0.3608]
[1734553582121,0.00068,101570.0,101560.0,0.049259]
[1734553582624,0.23930828,101600.0,101580.0,0.049246]
[1734553582922,0.00011975,101590.0,101580.0,0.049246]
[1734553583219,0.00011975,101590.0,101550.0,0.3608]
[1734553583409,0.00011975,101590.0,101570.0,0.3608]
[1734553583614,0.00011975,101590.0,101580.0,0.410049]
[1734553583815,7.5e-07,101590.0,101580.0,1.02955794]
[1734553584015,0.1668618,101610.0,101600.0,0.04924]
[1734553584217,0.2499805,101640.0,101600.0,0.7216]
[1734553584218,0.0148,101640.0,101600.0,0.7216]
[1734553584421,0.3613,101630.0,101600.0,0.410036]
[1734553584721,0.049233,101620.0,101580.0,0.410045]
[1734553584908,0.003,101600.0,101580.0,0.6608]
[1734553585110,0.003,101600.0,101590.0,0.410044]
[1734553585317,8.167e-05,101610.0,101600.0,0.04924]
[1734553585520,6.7e-07,101610.0,101600.0,0.05024]
[1734553585718,6.7e-07,101610.0,101600.0,1.39442894]
[1734553585911,6.7e-07,101610.0,101600.0,1.03262894]
[1734553586119,6.7e-07,101610.0,101600.0,0.41312]
[1734553586328,6.7e-07,101610.0,101600.0,0.41004]
[1734553586623,0.36380067,101610.0,101590.0,0.049244]
[1734553586826,0.00300067,101610.0,101600.0,0.410039]
[1734553587016,6.7e-07,101610.0,101600.0,0.410039]
[1734553587215,6.7e-07,101610.0,101600.0,1.39034794]
[1734553587919,6.7e-07,101610.0,101600.0,1.02954794]
[1734553588118,0.3608,101620.0,101600.0,0.36487379]
[1734553588318,0.049235,101610.0,101600.0,0.00407379]
[1734553588519,0.410035,101610.0,101600.0,0.00407379]
[1734553588719,0.049248,101590.0,101570.0,0.00147661]
[1734553588914,0.3608,101600.0,101570.0,0.41152761]
[1734553589116,0.61950894,101610.0,101570.0,0.36227661]
[1734553589324,0.410049,101580.0,101570.0,0.00147661]
[1734553589820,0.049264,101550.0,101540.0,0.00010043]
[1734553590028,0.049256,101570.0,101540.0,0.04936743]
[1734553590219,7.722e-05,101580.0,101570.0,0.049254]
[1734553590417,0.02461,101570.0,101550.0,0.410061]
[1734553590615,0.02461,101570.0,101560.0,0.72956794]
[1734553590816,2.2e-07,101580.0,101570.0,0.049254]
[1734553591022,0.049235,101610.0,101590.0,0.049243]
[1734553591216,0.0196044,101650.0,101600.0,0.3608]
[1734553591424,0.41148776,101660.0,101630.0,0.049222]
[1734553591616,0.049216,101650.0,101620.0,0.3608]
[1734553591817,0.00147676,101660.0,101620.0,0.6608]
[1734553592121,0.00147676,101660.0,101650.0,0.049215]
[1734553592322,9.533e-05,101660.0,101650.0,0.049214]
[1734553592530,9.533e-05,101660.0,101650.0,0.410014]
[1734553593027,0.00609533,101660.0,101650.0,0.710014]
[1734553593625,0.4608,101700.0,101650.0,0.3608]
[1734553593824,1.10949674,101700.0,101650.0,0.3608]
[1734553594016,0.049202,101680.0,101650.0,0.3608]
[1734553594322,0.049204,101680.0,101650.0,0.410014]
[1734553594529,0.006,101660.0,101650.0,0.411014]
[1734553594727,0.41611327,101660.0,101650.0,0.001]
[1734553594930,0.049215,101650.0,101640.0,8.206e-05]
[1734553595423,0.049226,101630.0,101610.0,0.3608]
[1734553595629,0.049226,101630.0,101610.0,0.410031]
[1734553595815,0.70949674,101640.0,101610.0,0.3608]
[1734553596126,0.70949674,101640.0,101600.0,0.38206066]
[1734553596127,0.70949674,101620.0,101600.0,0.00147634]
[1734553596329,0.410035,101610.0,101600.0,0.00147634]
[1734553596626,0.049244,101590.0,101580.0,0.00012089]
[1734553596925,0.049254,101570.0,101540.0,0.049266]
[1734553597123,0.3608,101580.0,101550.0,0.049262]
[1734553597326,0.049254,101570.0,101550.0,0.049262]
[1734553597721,8.94e-05,101560.0,101550.0,0.41016092]
[1734553598223,1.00958614,101560.0,101530.0,0.00147718]
[1734553598422,0.70958614,101560.0,101530.0,0.00147718]
[1734553598619,0.72623614,101560.0,101530.0,0.00147718]
[1734553598927,0.70949674,101540.0,101500.0,0.1]
[1734553599128,0.410074,101530.0,101510.0,0.049282]
[1734553599316,0.3315394,101560.0,101530.0,0.049272]
[1734553599317,0.77549514,101560.0,101530.0,0.049272]
[1734553599522,0.77549514,101560.0,101550.0,0.049264]
[1734553599523,0.0167394,101560.0,101550.0,0.049264]
[1734553599717,0.0167394,101560.0,101530.0,0.6608]
[1734553599925,0.0167394,101560.0,101550.0,0.3608]
[1734553600136,0.3622782,101570.0,101550.0,0.049264]
[1734553600436,0.4115332,101570.0,101550.0,0.049264]
[1734553600624,0.3622782,101570.0,101550.0,0.410064]
[1734553600826,0.0014782,101570.0,101560.0,0.770859]
[1734553601037,0.41151257,101610.0,101560.0,0.77095569]
[1734553601223,8.472e-05,101580.0,101560.0,0.30009669]
[1734553601427,0.04933372,101580.0,101560.0,9.669e-05]
[1734553601628,0.001,101570.0,101560.0,0.41015569]
[1734553601824,0.3618,101570.0,101560.0,0.04935569]
[1734553602032,0.710054,101570.0,101560.0,9.669e-05]
[1734553602233,0.049259,101560.0,101510.0,0.01941411]
[1734553602432,0.3608,101520.0,101510.0,0.049282]
[1734553602632,0.410068,101540.0,101510.0,0.049282]
[1734553603027,0.70949674,101530.0,101500.0,0.10147749]
[1734553603336,0.3608,101510.0,101500.0,0.10147749]
[1734553603536,0.00011721,101520.0,101500.0,0.10147749]
[1734553603733,0.41019521,101520.0,101500.0,0.10147749]
[1734553603938,0.00011721,101520.0,101500.0,0.15076249]
[1734553604235,0.3608,101510.0,101500.0,0.10147749]
[1734553604538,0.75877974,101510.0,101500.0,0.00137652]
[1734553604730,1.05877974,101510.0,101500.0,0.00137652]
[1734553605040,0.410083,101510.0,101500.0,0.00137652]
[1734553605243,0.411083,101510.0,101500.0,0.00537652]
[1734553605429,0.3618,101510.0,101500.0,0.00537652]
[1734553605631,0.001,101510.0,101500.0,0.41546452]
[1734553605830,0.052283,101510.0,101500.0,0.00137652]
[1734553606032,0.413083,101510.0,101500.0,0.00137652]
[1734553606231,0.003,101510.0,101500.0,0.00137652]
[1734553606739,0.052283,101510.0,101500.0,0.00137652]
[1734553606938,0.3638,101510.0,101500.0,0.00137652]
[1734553607144,0.713083,101510.0,101500.0,0.00137652]
[1734553607339,1.07457974,101510.0,101500.0,0.00637652]
[1734553607533,1.07457974,101510.0,101480.0,9.687e-05]
[1734553607534,0.049293,101490.0,101480.0,9.687e-05]
[1734553607729,1.1196785,101490.0,101480.0,8.7e-07]
[1734553607936,1.4196785,101490.0,101480.0,8.7e-07]
[1734553608336,1.43438974,101490.0,101480.0,8.7e-07]
[1734553608839,1.43438974,101490.0,101480.0,0.00500087]
[1734553608840,1.43548663,101490.0,101480.0,0.00500087]
[1734553609435,1.13548663,101490.0,101480.0,0.00500087]
[1734553609639,0.77198989,101490.0,101480.0,0.00500087]
[1734553609832,0.049308,101460.0,101440.0,0.410116]
[1734553610145,0.410112,101450.0,101420.0,0.410126]
[1734553610346,0.410112,101450.0,101420.0,0.049326]
[1734553610540,0.049323,101430.0,101410.0,0.3608]
[1734553610743,0.049318,101440.0,101400.0,0.3608]
[1734553610934,0.049318,101440.0,101410.0,0.049331]
[1734553611136,0.049318,101440.0,101410.0,0.02311923]
[1734553611137,0.049323,101430.0,101410.0,0.02311923]
[1734553611438,0.049323,101430.0,101410.0,0.38391923]
[1734553611439,7.778e-05,101420.0,101410.0,0.38391923]
[1734553611641,7.8e-07,101420.0,101410.0,0.43325023]
[1734553611849,7.8e-07,101420.0,101410.0,0.410131]
[1734553612244,7.8e-07,101420.0,101410.0,0.416131]
[1734553612545,7.8e-07,101440.0,101410.0,0.716131]
[1734553612741,7.8e-07,101440.0,101430.0,0.770922]
[1734553613248,0.36080078,101440.0,101420.0,0.3608]
[1734553613549,0.001,101420.0,101410.0,0.3608]
[1734553613741,0.001,101420.0,101410.0,0.43312734]
[1734553614047,0.00010418,101430.0,101410.0,0.049331]
[1734553614248,0.00010418,101430.0,101390.0,0.36227845]
[1734553614450,0.34880092,101430.0,101390.0,0.38542841]
[1734553614649,1.05892492,101430.0,101390.0,0.07396741]
[1734553614838,0.411128,101420.0,101390.0,0.02314996]
[1734553615034,0.411128,101420.0,101390.0,0.07248896]
[1734553615244,0.3608,101420.0,101400.0,0.049336]
[1734553615446,0.00110418,101430.0,101400.0,0.07248596]
[1734553615644,0.36190418,101430.0,101410.0,0.049331]
[1734553615849,0.00110418,101430.0,101420.0,0.410126]
[1734553616148,0.00110418,101430.0,101420.0,0.79407596]
[1734553616349,0.00110418,101430.0,101420.0,0.049326]
[1734553616742,0.00010418,101430.0,101420.0,0.049326]
[1734553617048,0.00010418,101430.0,101420.0,0.710126]
[1734553617243,0.00010418,101430.0,101420.0,0.410126]
[1734553617848,0.00010418,101430.0,101420.0,0.049326]
[1734553618149,0.00110418,101430.0,101420.0,0.770926]
[1734553618353,0.00110418,101430.0,101420.0,0.049326]
[1734553618848,0.00110418,101430.0,101420.0,0.710126]
[1734553619037,0.0014,101490.0,101420.0,0.710126]
[1734553619241,0.0014,101490.0,101480.0,0.049297]
[1734553619437,0.0014,101490.0,101480.0,0.410097]
[1734553619646,0.08293492,101540.0,101480.0,0.6608]
[1734553619839,0.3608,101520.0,101470.0,0.3608]
[1734553620044,0.3608,101520.0,101510.0,0.049281]
[1734553620249,6.985e-05,101530.0,101510.0,0.049281]
[1734553620644,6.985e-05,101530.0,101520.0,0.049278]
[1734553620844,6.985e-05,101530.0,101500.0,0.3608]
[1734553621051,6.985e-05,101530.0,101520.0,0.410078]
[1734553621358,0.36086985,101530.0,101520.0,0.049278]
[1734553621551,6.985e-05,101530.0,101520.0,0.049278]
[1734553621950,6.985e-05,101530.0,101520.0,0.410078]
[1734553622250,6.985e-05,101530.0,101500.0,0.3608]
[1734553622452,0.71014285,101530.0,101500.0,0.049287]
[1734553622762,0.75878174,101510.0,101480.0,0.04939826]
[1734553622956,0.70949674,101510.0,101490.0,0.049292]
[1734553623252,0.00706985,101530.0,101520.0,0.049278]
[1734553623455,0.41114485,101530.0,101490.0,0.04929]
[1734553623653,0.3608,101500.0,101480.0,0.00010126]
[1734553623861,0.4101935,101490.0,101480.0,0.00010126]
[1734553624047,0.75889024,101490.0,101480.0,0.00010126]
[1734553624245,0.049309,101460.0,101430.0,0.91796113]
[1734553624459,0.3608,101450.0,101430.0,0.61546113]
[1734553624753,0.3608,101450.0,101430.0,0.22396213]
[1734553624950,0.410109,101460.0,101440.0,0.3608]
[1734553625146,0.00012216,101450.0,101430.0,0.17464113]
[1734553625347,0.00012216,101450.0,101430.0,0.22396213]
[1734553625660,0.66092216,101450.0,101410.0,0.41020784]
[1734553625852,0.410126,101420.0,101410.0,8.084e-05]
[1734553626051,0.049326,101420.0,101410.0,8.084e-05]
[1734553626248,0.3608,101430.0,101410.0,8.084e-05]
[1734553626452,0.410126,101420.0,101410.0,8.084e-05]
[1734553626854,0.049336,101400.0,101390.0,0.00147939]
[1734553627049,0.049343,101390.0,101370.0,0.3608]
[1734553627253,0.3608,101410.0,101380.0,0.410144]
[1734553627456,0.70949674,101390.0,101350.0,0.01]
[1734553627757,0.410133,101410.0,101380.0,0.049345]
[1734553628054,0.3618,101420.0,101390.0,0.410138]
[1734553628055,0.0001005,101400.0,101390.0,0.410138]
[1734553628265,0.001,101420.0,101410.0,0.049331]
[1734553628458,0.001,101420.0,101400.0,0.049335]
[1734553628661,0.001,101420.0,101390.0,0.3608]
[1734553628854,0.001,101420.0,101400.0,0.3608]
[1734553629065,0.36228035,101440.0,101410.0,0.04933]
[1734553629256,0.00148035,101440.0,101430.0,0.049321]
[1734553629569,0.65387609,101440.0,101410.0,0.04933]
[1734553629750,0.7226,101420.0,101390.0,0.049337]
[1734553629949,0.3608,101410.0,101400.0,0.049336]
[1734553630350,0.7031244,101410.0,101380.0,0.0200643]
[1734553630555,0.3608,101400.0,101390.0,0.049338]
[1734553630753,0.3608,101400.0,101370.0,0.45569963]
[1734553631053,0.770946,101380.0,101360.0,0.00147963]
[1734553631358,0.41015,101370.0,101360.0,0.00147963]
[1734553631558,0.3608,101370.0,101350.0,0.01]
[1734553631763,0.3608,101400.0,101350.0,0.31]
[1734553631953,0.3608,101380.0,101360.0,0.049354]
[1734553632159,0.410149,101380.0,101350.0,0.01]
[1734553632361,0.410149,101380.0,101350.0,0.059358]
[1734553632362,0.410152,101370.0,101350.0,0.059358]
[1734553632664,0.410155,101360.0,101350.0,0.01]
[1734553632859,0.410155,101360.0,101350.0,0.00860249]
[1734553633059,0.64507619,101360.0,101330.0,0.049368]
[1734553633258,0.049361,101350.0,101320.0,0.58481213]
[1734553633461,0.33363219,101360.0,101330.0,0.049368]
[1734553633762,0.410161,101350.0,101320.0,0.17464113]
[1734553633966,0.69443219,101360.0,101320.0,0.3608]
[1734553634154,0.69543219,101360.0,101340.0,0.049365]
[1734553634467,0.41016,101350.0,101330.0,0.049366]
[1734553634660,0.049365,101340.0,101320.0,0.049372]
[1734553634961,0.049371,101330.0,101310.0,0.410178]
[1734553635161,0.410161,101350.0,101330.0,0.049369]
[1734553635361,0.3608,101350.0,101340.0,0.049365]
[1734553635571,0.001,101360.0,101350.0,0.04936]
[1734553635755,0.001,101360.0,101350.0,0.41016]
[1734553635962,0.001,101360.0,101350.0,0.71016]
[1734553636162,0.001,101360.0,101350.0,0.04936]
[1734553636461,0.33463419,101360.0,101340.0,0.049362]
[1734553636658,0.69543419,101360.0,101340.0,0.049362]
[1734553636854,0.3608,101350.0,101320.0,0.36228037]
[1734553637163,0.410169,101340.0,101320.0,0.00148037]
[1734553637551,0.3608,101340.0,101320.0,0.05085237]
[1734553637757,0.410161,101350.0,101330.0,0.049367]
[1734553638067,0.001,101360.0,101350.0,0.049359]
[1734553638264,1.8e-07,101370.0,101360.0,0.049355]
[1734553638572,8.7e-07,101390.0,101360.0,0.410155]
[1734553638767,0.410138,101400.0,101370.0,0.04935]
[1734553639067,0.049355,101360.0,101350.0,0.049355]
[1734553639262,0.3608,101370.0,101330.0,0.38081916]
[1734553639565,7.349e-05,101350.0,101330.0,0.68092236]
[1734553639764,7.349e-05,101350.0,101340.0,0.049364]
[1734553640267,0.64514968,101350.0,101340.0,0.049364]
[1734553640468,0.28434968,101350.0,101340.0,0.049364]
[1734553640669,7.349e-05,101350.0,101340.0,0.049364]
[1734553640866,4.9e-07,101350.0,101340.0,1.05886074]
[1734553641566,4.9e-07,101350.0,101340.0,0.049364]
[1734553641761,4.9e-07,101350.0,101330.0,0.43029036]
[1734553641965,0.69543868,101350.0,101340.0,0.18264113]
[1734553642165,0.69539868,101350.0,101340.0,0.18264113]
[1734553642365,0.69439868,101350.0,101340.0,0.17464113]
[1734553642561,0.69539868,101350.0,101340.0,0.18264113]
[1734553642969,0.69539868,101350.0,101340.0,0.008]
[1734553643165,0.00108432,101350.0,101340.0,0.057364]
[1734553643573,0.64616051,101350.0,101340.0,0.008]
[1734553643764,0.33471951,101350.0,101340.0,0.008]
[1734553644069,0.00108432,101350.0,101340.0,0.008]
[1734553644269,0.00108432,101350.0,101340.0,0.057364]
[1734553644862,1.05336051,101350.0,101300.0,0.39808074]
[1734553645067,0.3608,101330.0,101320.0,0.049374]
[1734553645560,0.3608,101330.0,101320.0,0.349374]
[1734553645765,0.3608,101330.0,101320.0,0.34946389]
[1734553645963,0.36188432,101350.0,101330.0,0.049169]
[1734553646274,0.3608,101340.0,101320.0,8.989e-05]
[1734553646575,0.001,101330.0,101320.0,0.35846389]
[1734553646771,0.3618,101330.0,101320.0,0.05846389]
[1734553646972,0.001,101330.0,101320.0,0.35846389]
[1734553647272,0.3608,101370.0,101340.0,0.049364]
[1734553647574,0.3608,101370.0,101360.0,0.049354]
[1734553647769,0.64507619,101370.0,101340.0,0.049361]
[1734553647971,0.049364,101340.0,101330.0,0.05084824]
[1734553648164,0.410164,101340.0,101330.0,0.00148024]
[1734553648365,0.049369,101330.0,101320.0,0.00908989]
[1734553648568,0.3608,101330.0,101320.0,0.05846289]
[1734553648873,0.3608,101330.0,101320.0,0.07284634]
[1734553649069,0.3618,101330.0,101320.0,0.07284634]
[1734553649377,0.0027,101330.0,101320.0,0.37284634]
[1734553649574,0.001,101330.0,101320.0,0.34946289]
[1734553649772,7.63e-05,101340.0,101330.0,0.049369]
[1734553650073,0.0013,101380.0,101370.0,0.04935]
[1734553650278,0.00148059,101390.0,101370.0,0.04935]
[1734553650467,0.00148059,101390.0,101380.0,0.049345]
[1734553650663,1.3e-07,101410.0,101400.0,0.049335]
[1734553650864,1.3e-07,101410.0,101400.0,0.30855589]
[1734553651069,0.02538921,101420.0,101410.0,0.04933]
[1734553651368,2.1e-07,101420.0,101410.0,0.04933]
[1734553651569,2.1e-07,101420.0,101410.0,0.71013]
[1734553651778,0.19412925,101460.0,101450.0,0.049311]
[1734553652764,0.19419955,101460.0,101450.0,0.349311]
[1734553652965,7.03e-05,101460.0,101450.0,0.349311]
[1734553653172,0.64514649,101460.0,101450.0,0.001]
[1734553653366,7.03e-05,101460.0,101450.0,0.350311]
[1734553653669,3e-07,101460.0,101450.0,0.711111]
[1734553654273,0.00147909,101510.0,101450.0,1.12340268]
[1734553654478,0.3608,101530.0,101500.0,0.3608]
[1734553654687,0.3608,101530.0,101520.0,0.049277]
[1734553654974,0.3608,101550.0,101540.0,0.049267]
[1734553655177,0.64507619,101550.0,101540.0,0.049267]
[1734553655373,1.00594726,101550.0,101540.0,0.049267]
[1734553655573,1.05521026,101550.0,101530.0,7.566e-05]
[1734553655878,0.3608,101540.0,101530.0,0.04934766]
[1734553656072,0.36087107,101550.0,101540.0,0.049267]
[1734553656274,0.00907107,101550.0,101540.0,0.050267]
[1734553656677,0.36987107,101550.0,101540.0,0.350267]
[1734553656882,0.00107107,101550.0,101540.0,0.349267]
[1734553657379,0.00107107,101550.0,101540.0,0.049267]
[1734553657783,0.36187107,101550.0,101540.0,0.049267]
[1734553657970,0.64614726,101550.0,101530.0,0.05834666]
[1734553658170,0.3608,101540.0,101530.0,0.04934666]
[1734553658378,0.410067,101540.0,101530.0,7.566e-05]
[1734553658583,1.04401062,101540.0,101530.0,7.566e-05]
[1734553659082,1.04401062,101540.0,101480.0,0.36412]
[1734553659083,1.29319034,101540.0,101480.0,0.36412]
[1734553659279,0.64352291,101540.0,101490.0,0.71046743]
[1734553659593,0.64352291,101540.0,101530.0,0.001]
[1734553659594,1.29319034,101540.0,101530.0,0.001]
[1734553659783,0.63239034,101540.0,101530.0,0.001]
[1734553659971,7.107e-05,101550.0,101540.0,0.049267]
[1734553660281,7e-08,101550.0,101540.0,0.410067]
[1734553660480,7e-08,101550.0,101540.0,0.710067]
[1734553661770,0.10147836,101600.0,101590.0,0.049243]
[1734553661976,0.38420127,101600.0,101590.0,0.049243]
[1734553662172,0.3608,101640.0,101630.0,0.049222]
[1734553662375,0.28272291,101640.0,101630.0,0.049222]
[1734553662782,0.64364535,101640.0,101590.0,0.1481455]
[1734553663081,0.3608,101600.0,101590.0,0.049241]
[1734553663485,0.64352291,101600.0,101590.0,0.049241]
[1734553664473,0.3608,101600.0,101590.0,0.049241]
[1734553664677,0.64352291,101600.0,101590.0,0.049241]
[1734553664877,0.3608,101610.0,101600.0,0.049238]
[1734553665072,0.258405,101610.0,101600.0,0.049238]
[1734553665282,0.36992244,101640.0,101630.0,0.049224]
[1734553665479,0.64364535,101640.0,101630.0,0.049224]
[1734553666580,0.64364535,101640.0,101630.0,0.050224]
[1734553666786,0.36692244,101640.0,101630.0,0.050224]
[1734553666981,0.00612244,101640.0,101630.0,0.39989143]
[1734553667378,0.36692244,101640.0,101630.0,0.050224]
[1734553667576,4.4e-07,101640.0,101630.0,0.050224]
[1734553667781,0.36080044,101640.0,101630.0,0.050224]
[1734553668187,0.3608,101640.0,101630.0,0.054224]
[1734553668485,0.36089588,101640.0,101630.0,0.005]
[1734553668782,8.8e-07,101640.0,101630.0,0.354224]
[1734553669185,0.3608,101680.0,101630.0,0.715024]
[1734553669382,0.3608,101680.0,101670.0,0.049204]
[1734553669589,0.64352291,101680.0,101670.0,0.049204]
[1734553669886,0.28272291,101680.0,101670.0,0.049204]
[1734553670275,0.64360798,101680.0,101660.0,0.00011997]
[1734553670476,0.3608,101670.0,101660.0,0.00011997]
[1734553670678,0.410004,101670.0,101630.0,0.005]
[1734553670878,0.7585119,101660.0,101630.0,0.054223]
[1734553671081,0.7136,101640.0,101610.0,0.06876177]
[1734553671288,0.3608,101640.0,101620.0,0.049226]
[1734553671583,0.28162713,101640.0,101630.0,0.049224]
[1734553671786,0.00059121,101640.0,101630.0,0.049224]
[1734553672282,0.64251834,101640.0,101630.0,0.049224]
[1734553672473,0.28171834,101640.0,101630.0,0.049224]
[1734553672674,2.1e-07,101640.0,101630.0,0.60726433]
[1734553672875,2.1e-07,101640.0,101630.0,0.96806433]
[1734553673677,2.1e-07,101660.0,101650.0,0.049214]
[1734553673879,2.1e-07,101660.0,101650.0,1.39249433]
[1734553674080,2.1e-07,101660.0,101650.0,1.69249433]
[1734553674285,0.1,101700.0,101690.0,0.049195]
[1734553674486,1.10272713,101700.0,101690.0,0.049195]
[1734553674788,0.74201059,101700.0,101690.0,0.049195]
[1734553675385,0.99973982,101700.0,101670.0,0.0492]
[1734553675686,0.3613,101680.0,101670.0,0.049204]
[1734553676286,4.6e-07,101700.0,101690.0,0.049195]
[1734553676593,4.6e-07,101700.0,101690.0,0.409995]
[1734553676885,4.6e-07,101700.0,101690.0,0.049195]
[1734553677082,0.89965682,101700.0,101670.0,0.049202]
[1734553677282,0.53885682,101700.0,101690.0,0.049195]
[1734553677682,0.89978247,101700.0,101690.0,0.049195]
[1734553677879,0.91865534,101700.0,101660.0,0.3177]
[1734553678084,0.61852923,101670.0,101660.0,0.3177]
[1734553678291,0.61852923,101670.0,101640.0,0.3961]
[1734553678487,0.85034505,101670.0,101660.0,0.049209]
[1734553678694,0.59261582,101670.0,101660.0,0.049209]
[1734553678899,0.3608,101670.0,101660.0,0.04928501]
[1734553679089,0.85034505,101670.0,101660.0,0.04928501]
[1734553680488,0.59261582,101670.0,101660.0,0.04928501]
[1734553681091,0.3608,101680.0,101660.0,0.04928501]
[1734553681393,1.1e-07,101700.0,101670.0,0.66773323]
[1734553681593,0.3608,101740.0,101690.0,0.409995]
[1734553681795,0.59261582,101740.0,101730.0,0.049175]
[1734553681997,0.23181582,101740.0,101730.0,0.049175]
[1734553682386,0.23181582,101740.0,101730.0,0.409975]
[1734553682692,0.23191402,101740.0,101730.0,0.0492861]
[1734553682890,0.59271402,101740.0,101730.0,0.0492861]
[1734553683190,0.23191402,101740.0,101730.0,0.0492861]
[1734553683396,0.049178,101730.0,101700.0,1.0902]
[1734553683590,0.3608,101710.0,101690.0,0.049194]
[1734553683784,0.25772923,101700.0,101690.0,0.049194]
[1734553683992,0.61852923,101720.0,101710.0,0.049185]
[1734553684298,9.82e-05,101740.0,101730.0,0.049175]
[1734553684885,9.82e-05,101740.0,101730.0,0.409975]
[1734553685083,2e-07,101740.0,101730.0,1.030775]
[1734553685297,2e-07,101740.0,101730.0,1.28850423]
[1734553685482,2e-07,101740.0,101730.0,0.98850423]
[1734553685688,2e-07,101740.0,101730.0,0.730775]
[1734553685993,2e-07,101740.0,101730.0,0.7308677]
[1734553686296,2e-07,101740.0,101730.0,0.3700677]
[1734553686792,2e-07,101740.0,101730.0,1.0308677]
[1734553687000,2e-07,101740.0,101730.0,1.28859693]
[1734553687296,0.4588,101800.0,101780.0,0.049151]
[1734553687484,0.4588,101800.0,101790.0,0.049146]
[1734553687685,0.4593,101800.0,101790.0,0.049146]
[1734553687895,0.0985,101800.0,101790.0,0.049146]
[1734553688195,0.09860424,101800.0,101790.0,0.049146]
[1734553688592,2.4e-07,101800.0,101790.0,0.709946]
[1734553688794,2.4e-07,101800.0,101790.0,0.409946]
[1734553688984,0.0005,101810.0,101790.0,0.709946]
[1734553689189,2.4e-07,101810.0,101800.0,0.736242]
[1734553689389,2.4e-07,101810.0,101800.0,1.036242]
[1734553689586,0.3608,101840.0,101830.0,0.049127]
[1734553689791,0.36227404,101850.0,101840.0,0.049122]
[1734553690090,0.36237453,101850.0,101840.0,0.049122]
[1734553690393,0.00157453,101850.0,101840.0,0.049122]
[1734553691098,0.00157453,101850.0,101830.0,9.936e-05]
[1734553691392,0.00157453,101850.0,101840.0,0.049122]
[1734553691596,0.0005,101840.0,101830.0,0.04922636]
[1734553691896,0.66815123,101840.0,101830.0,9.936e-05]
[1734553692095,0.96815123,101840.0,101830.0,9.936e-05]
[1734553692600,0.96765123,101840.0,101830.0,9.936e-05]
[1734553692990,0.61852923,101840.0,101830.0,0.04922636]
[1734553693397,0.61852923,101840.0,101830.0,9.936e-05]
[1734553693693,0.049137,101810.0,101800.0,0.00147351]
[1734553693895,0.3608,101810.0,101800.0,0.05061551]
[1734553694495,0.3608,101820.0,101810.0,0.049137]
[1734553694692,6.9e-07,101820.0,101810.0,0.04925001]
[1734553694894,6.9e-07,101820.0,101810.0,0.66185001]
[1734553695093,6.9e-07,101820.0,101810.0,1.02265001]
[1734553695696,0.0005,101870.0,101860.0,0.049113]
[1734553695892,0.3613,101870.0,101860.0,0.049113]
[1734553696086,0.3613,101870.0,101850.0,0.049118]
[1734553696294,0.61852923,101860.0,101830.0,0.049124]
[1734553696491,0.97932923,101840.0,101810.0,0.00011301]
[1734553696694,0.3608,101840.0,101820.0,0.049131]
[1734553696889,0.3608,101840.0,101830.0,0.049127]
[1734553697104,0.36091239,101840.0,101830.0,0.049127]
[1734553697397,0.61864162,101840.0,101810.0,0.04924901]
[1734553697602,0.61864162,101840.0,101820.0,0.049132]
[1734553697603,0.3608,101830.0,101820.0,0.049132]
[1734553697798,0.3608,101830.0,101810.0,0.00011301]
[1734553698101,0.3608,101820.0,101810.0,0.00011301]
[1734553698401,0.3608,101820.0,101810.0,0.04925001]
[1734553699003,0.36091239,101840.0,101820.0,0.049132]
[1734553699208,0.25772923,101860.0,101850.0,0.049118]
[1734553699389,0.3608,101870.0,101830.0,0.3608]
[1734553699698,0.37227346,101880.0,101850.0,0.3608]
[1734553699901,0.37227346,101880.0,101870.0,0.049108]
[1734553700304,0.01157909,101880.0,101870.0,0.049108]
[1734553700502,0.37237909,101880.0,101870.0,0.049108]
[1734553700801,0.37237909,101880.0,101830.0,0.05059995]
[1734553700802,0.63010832,101880.0,101830.0,0.05059995]
[1734553701003,0.3608,101870.0,101850.0,0.049115]
[1734553701200,0.3608,101870.0,101860.0,0.049113]
[1734553701400,0.049115,101860.0,101840.0,0.049121]
[1734553701598,0.7216,101850.0,101840.0,0.049121]
[1734553701798,0.770718,101850.0,101830.0,0.05059995]
[1734553702006,0.3608,101840.0,101830.0,0.05059995]
[1734553702196,0.3608,101860.0,101830.0,0.00147295]
[1734553702398,0.3608,101860.0,101850.0,0.049118]
[1734553703199,0.37237909,101880.0,101860.0,0.049108]
[1734553703398,0.37237909,101880.0,101850.0,0.049118]
[1734553703704,0.01157909,101880.0,101870.0,0.049108]
[1734553704111,0.37237909,101880.0,101870.0,0.049108]
[1734553704309,0.01157909,101880.0,101870.0,0.049108]
[1734553704802,0.01010563,101880.0,101870.0,0.049108]
[1734553705401,0.62863486,101880.0,101850.0,0.4022]
[1734553705595,0.3608,101870.0,101860.0,0.049113]
[1734553705811,0.62863486,101880.0,101870.0,0.049108]
[1734553706108,0.01010563,101880.0,101870.0,0.049108]
[1734553706303,0.67773886,101880.0,101860.0,0.049113]
[1734553706504,0.40991,101870.0,101850.0,0.049116]
[1734553706908,0.3608,101870.0,101860.0,0.049113]
[1734553707209,0.37090563,101880.0,101870.0,0.049108]
[1734553707210,0.01010563,101880.0,101870.0,0.049108]
[1734553707411,0.37090563,101880.0,101870.0,0.049108]